Cogmind - Beta 11.1 @@@ ROGUE MODE // 2022.05.10 @ 15:36:08 Player: Sara Result: Self-destructed Performance ------------- Evolutions (2) 1000 Regions Visited (4) 800 Robots Destroyed (48) 240 Value Destroyed (1120) 1120 Prototype IDs (5) 100 Alien Tech Used (0) 0 Bonus (67) 67 TOTAL SCORE: 3327 Bonus ------- Follower Combat Kills 67 Cogmind --------- Core Integrity 440/550 Matter 240/300 Energy 42/100 System Corruption 0% Temperature Cool (27) Movement Treading (160) Location -8/Materials Parts ------- > --- POWER (1) -------- (None) > --- PROPULSION (4) --- Light Treads Light Treads Light Treads Improved Treads > --- UTILITY (4) ------ Medium Storage Unit Improved Signal Interpreter Hacking Suite > --- WEAPON (2) ------- Advanced Beam Rifle > --- INVENTORY (10) --- Improved Ion Engine Cooled Ion Engine Light Treads Light Treads Improved Signal Interpreter Peak State ------------ > --- POWER ------------ Light Nuclear Core > --- PROPULSION ------- Light Treads Light Treads Light Treads Improved Treads > --- UTILITY ---------- Improved Heat Sink Medium Storage Unit Improved Signal Interpreter Hacking Suite > --- WEAPON ----------- Heavy EM Shotgun Heavy Assault Rifle > --- INVENTORY -------- Improved Ion Engine Cooled Ion Engine Light Treads Light Treads Improved Signal Interpreter Advanced Beam Rifle [Rating: 25] Favorites ----------- Power Ion Engine Engine Ion Engine Power Core Light Nuclear Core Propulsion Light Treads Treads Light Treads Leg Aluminum Leg Utility Small Storage Unit Device Sensor Array Storage Small Storage Unit Processor Transport Network Coupler Hackware Hacking Suite Weapon Light Assault Rifle Energy Gun EM Pulse Gun Ballistic Gun Light Assault Rifle Build | -11 -10 -10 -9 -8 ------- Run | Scr Mat Min Mat Mat Slots Evolved 4 | . . . 2 2 Power . | . . . . . Propulsion 2 | . . . 2 . Utility 2 | . . . . 2 Weapon . | . . . . . Parts Attached 57 | 6 9 2 15 25 Power 7 | 1 1 . 3 2 Engine 6 | 1 1 . 3 1 Core 1 | . . . . 1 Reactor . | . . . . . Propulsion 20 | 2 2 2 4 10 Treads 16 | . . 2 4 10 Leg 4 | 2 2 . . . Wheel . | . . . . . Hover . | . . . . . Flight . | . . . . . Utility 7 | 1 1 . 1 4 Device 2 | . . . . 2 Storage 2 | 1 . . 1 . Processor 2 | . 1 . . 1 Hackware 1 | . . . . 1 Protection . | . . . . . Artifact . | . . . . . Weapon 23 | 2 5 . 7 9 Energy Gun 10 | 2 . . 1 7 Energy Cannon . | . . . . . Ballistic Gun 13 | . 5 . 6 2 Ballistic Cannon . | . . . . . Launcher . | . . . . . Special Weapon . | . . . . . Impact Weapon . | . . . . . Slashing Weapon . | . . . . . Piercing Weapon . | . . . . . Special Melee Weapon . | . . . . . Unidentified Prototypes 3 | . . . 1 2 Corrupted Parts 1 | . 1 . . . System Corruption 4 | . 4 . . . Parts Lost 15 | . 2 . 1 12 Power 2 | . . . . 2 Propulsion 6 | . . . 1 5 Utility 2 | . . . . 2 Weapon 5 | . 2 . . 3 Highest Loss Streak 7 | . 2 . 1 7 To Critical Strikes . | . . . . . Average Slot Usage (%) 96 | . 91 100 99 97 Engine 10 | . 14 14 11 4 Core 1 | . . . . 4 Treads 24 | . . 16 43 35 Leg 10 | . 28 11 . . Device 2 | . . . . 8 Storage 11 | . 14 14 11 9 Processor 8 | . 6 14 11 9 Hackware 2 | . . . . 9 Energy Gun 7 | . 12 . 6 6 Ballistic Gun 15 | . 16 28 15 11 Naked Turns . | . . . . . Heaviest Build 27 | 12 14 12 23 27 Greatest Support 83 | 20 20 40 80 83 Greatest Overweight (x) . | . . . . . Average Overweight (x) . | . . . . . Largest Inventory Capacity 10 | 8 8 8 10 10 Average Capacity 8 | 6 8 8 8 10 Most Carried 10 | 8 8 8 9 10 Average Carried 7 | 4 7 7 7 8 Final Capacity 10 | 8 8 8 10 10 Final Carried 9 | 6 8 7 9 5 Class Distribution -------------------- 71% | Scavenger-Mutant 28% | Mutant Dominant Class ---------------- Scavenger-Mutant | -10/Materials Scavenger-Mutant | -10/Mines Scavenger-Mutant | -9/Materials Scavenger-Mutant | -8/Materials Resources | -11 -10 -10 -9 -8 ----------- Run | Scr Mat Min Mat Mat Matter Collected 1109 | 212 235 34 291 337 Remotely . | . . . . . Salvage Created 1792 | . 572 . 457 763 Parts 116 | . 39 . 33 44 Haulers Intercepted 5 | . 2 . 1 2 Recyclers Shooed 2 | . 1 . . 1 Parts Field Recycled . | . . . . . Retrieved Matter . | . . . . . Parts Self-Destructed . | . . . . . Prevented . | . . . . . Kills | -11 -10 -10 -9 -8 ------- Run | Scr Mat Min Mat Mat Combat Hostiles Destroyed 35 | . 12 . 11 12 Guns 33 | . 12 . 11 10 AOE 2 | . . . . 2 Classes Destroyed 8 | . 5 . 1 2 Builder 3 | . . . . 3 Hauler 5 | . 2 . 1 2 Recycler 3 | . 1 . 1 1 Operator 2 | . 1 . 1 . Swarmer 14 | . 6 . 5 3 Grunt 12 | . 6 . 3 3 Sentry 8 | . . . 3 5 Hunter 1 | . . . . 1 Best Kill Streak 7 | . 6 . 4 7 Combat Bots Only 7 | . 5 . 4 7 Max Kills in Single Turn 2 | . 2 . 1 2 Gunslinging 1 | . . . . 1 Exploded 1 | . . . . 1 Melee . | . . . . . Uniques/NPCs Destroyed . | . . . . . Combat | -11 -10 -10 -9 -8 -------- Run | Scr Mat Min Mat Mat Damage Taken 2359 | . 490 . 650 1219 Core 362 | . 145 . 107 110 Absorbed by Shields . | . . . . . Core Remaining (%) 71 | 100 . 42 73 . Volleys Fired 165 | . 62 . 46 57 Largest 2 | . 2 . 2 2 Hottest 85 | . 80 . 85 85 Shots Fired 315 | . 123 . 92 100 Gun 315 | . 123 . 92 100 Cannon . | . . . . . Launcher . | . . . . . Special . | . . . . . Kinetic 204 | . 76 . 65 63 Thermal 40 | . . . 27 13 Explosive . | . . . . . Electromagnetic 71 | . 47 . . 24 Robot Hit Streak 19 | . 10 . 19 11 Robot Miss Streak 5 | . 5 . 4 4 Penetration Max . | . . . . . Secondary Targets 3 | . 1 . . 2 Max Gunslinging Chain 1 | . 1 . . 1 Shots Hit Robots 201 | . 76 . 54 71 Core Hits 82 | . 26 . 23 33 Critical Kills . | . . . . . Critical Parts Destroyed 1 | . . . . 1 Critical Strikes 3 | . . . 2 1 Burn 2 | . . . 2 . Destroy 1 | . . . . 1 Melee Attacks . | . . . . . Impact . | . . . . . Slashing . | . . . . . Piercing . | . . . . . Sneak Attacks . | . . . . . Combat Hostiles . | . . . . . Follow-up Attacks . | . . . . . Damage Inflicted 2968 | 2 779 4 722 1461 Guns 2698 | . 779 . 722 1197 Cannons . | . . . . . Explosions 264 | . . . . 264 Melee . | . . . . . Ramming 6 | 2 . 4 . . Kinetic 1503 | . 444 . 422 637 Thermal 756 | . . . 300 456 Explosive . | . . . . . Electromagnetic 703 | . 335 . . 368 Impact . | . . . . . Slashing . | . . . . . Piercing . | . . . . . Highest Corruption 4 | . 4 4 . . Average Corruption 4 | . 4 4 . . Corruption Purged . | . . . . . Corruption Blocked . | . . . . . Effects 14 | . 10 4 . . Message Errors 3 | . 2 1 . . Matter Fused 6 | . 5 1 . . Heat Flow Errors 1 | . . 1 . . Parts Rejected 1 | . 1 . . . Data Loss (minor) 1 | . . 1 . . Data Loss (major) 1 | . 1 . . . Alerts 1 | . 1 . . . Overload Shots . | . . . . . Overflow Damage 67 | . . . . 67 Projectiles . | . . . . . Explosions 67 | . . . . 67 Melee . | . . . . . Knockbacks . | . . . . . Impact . | . . . . . Kinetic . | . . . . . Secondary . | . . . . . Self-Inflicted Damage 111 | . . . . 111 Shots 3 | . . . . 3 Rammed 1 | . . 1 . . Targets Rammed 2 | 1 . 1 . . Kicked 1 | 1 . . . . Crushed . | . . . . . Highest Temperature 267 | . 165 215 267 45 Average Temperature 66 | . 55 113 92 17 Received Heat Transfer 699 | . 159 . 171 369 Effects 1 | . . 1 . . Energy Bleed 1 | . . 1 . . Siege Activations . | . . . . . Robots Corrupted . | . . . . . Combat Hostiles . | . . . . . Parts Fried . | . . . . . Impact Corruptions . | . . . . . Robots Melted . | . . . . . Combat Hostiles . | . . . . . Parts Melted 4 | . . . 3 1 Heat Transferred 1521 | . . . 814 707 Parts Sabotaged . | . . . . . Parts Stolen . | . . . . . Parts Stripped . | . . . . . Power Chain Reactions 5 | . . . . 5 Missiles Intercepted . | . . . . . Alert | -11 -10 -10 -9 -8 ------- Run | Scr Mat Min Mat Mat Peak Influence 322 | . 242 77 322 292 Initial 29 | . . 9 29 29 Average 106 | . 101 56 129 113 Maximum Alert Level 1 | . 1 . 1 1 Low Security (%) 90 | 100 98 100 88 75 Level 1 9 | . 1 . 11 24 Level 2 . | . . . . . Level 3 . | . . . . . Level 4 . | . . . . . Level 5 . | . . . . . High Security . | . . . . . Max Security . | . . . . . Squads Dispatched 4 | . 2 . 1 1 Investigation 1 | . 1 . . . Extermination . | . . . . . Reinforcement 3 | . 1 . 1 1 Assault . | . . . . . Garrison . | . . . . . Intercept . | . . . . . Searches Triggered . | . . . . . Construction Impeded 1 | . . . . 1 Haulers Reinforced . | . . . . . Active Scanning Responses . | . . . . . Cargo Convoy Interrupts . | . . . . . Stealth | -11 -10 -10 -9 -8 --------- Run | Scr Mat Min Mat Mat Distress Signals 5 | . 2 . . 3 Communications Jammed . | . . . . . Distress Signals . | . . . . . Times Spotted 63 | . 20 2 21 20 Peak Tracking Total 7 | . 5 2 7 5 Tactical Retreats 3 | . . . 1 2 Traps | -11 -10 -10 -9 -8 ------- Run | Scr Mat Min Mat Mat Traps Triggered 1 | . 1 . . . Indirectly . | . . . . . Trap Hack Attempts . | . . . . . Triggered . | . . . . . Disarmed . | . . . . . Reprogrammed . | . . . . . Reused . | . . . . . Traps Extracted . | . . . . . Installed . | . . . . . Triggered . | . . . . . Machines | -11 -10 -10 -9 -8 ---------- Run | Scr Mat Min Mat Mat Machines Disabled 3 | . 1 . . 2 Max in Single Turn 1 | . 1 . . 1 Machines Sabotaged . | . . . . . Garrisons Compromised . | . . . . . Overloaded Fab Kills . | . . . . . Hacking | -11 -10 -10 -9 -8 --------- Run | Scr Mat Min Mat Mat Machines Accessed 11 | . 6 . 3 2 Terminals 11 | . 6 . 3 2 Fabricators . | . . . . . Repair Stations . | . . . . . Recycling Units . | . . . . . Scanalyzers . | . . . . . Garrison Access . | . . . . . Total Hacks 27 | . 17 . 8 2 Successful 13 | . 9 . 2 2 Failed 13 | . 7 . 6 . Catastrophic . | . . . . . Database Lockouts 1 | . 1 . . . Manual 20 | . 13 . 7 . Terminals 27 | . 17 . 8 2 Fabricators . | . . . . . Repair Stations . | . . . . . Recycling Units . | . . . . . Scanalyzers . | . . . . . Garrison Access . | . . . . . Terminal Hacks 11 | . 7 . 2 2 Robot Analysis 3 | . 2 . 1 . Prototype ID Bank 1 | . 1 . . . Terminal Index 1 | . 1 . . . Alert Level 1 | . . . . 1 Unreport Threat 2 | . . . 1 1 Locate Traps 1 | . 1 . . . Registered Components 1 | . 1 . . . Zone Layout 1 | . 1 . . . Fabricator Hacks . | . . . . . Repair Station Hacks . | . . . . . Recycling Unit Hacks . | . . . . . Scanalyzer . | . . . . . Garrison Access Hacks . | . . . . . Unauthorized Hacks 2 | . 2 . . . Terminals 2 | . 2 . . . Botnet 1 | . 1 . . . Operators 1 | . 1 . . . Fabricators . | . . . . . Repair Stations . | . . . . . Recycling Units . | . . . . . Scanalyzers . | . . . . . Garrison Access . | . . . . . Data Cores Recovered . | . . . . . Used . | . . . . . Hacking Detections 9 | . 5 . 3 1 Full Trace Events 2 | . 2 . . . Feedback Events . | . . . . . Feedback Blocked . | . . . . . Robot Schematics Acquired . | . . . . . Robots Built . | . . . . . Authchips . | . . . . . Time . | . . . . . Total Robot Build Rating . | . . . . . Part Schematics Acquired . | . . . . . Parts Built . | . . . . . Authchips . | . . . . . Time . | . . . . . Total Part Build Rating . | . . . . . Parts Repaired . | . . . . . Time . | . . . . . Parts Recycled . | . . . . . Recycled Matter . | . . . . . Retrieved Matter . | . . . . . Retrieved Components . | . . . . . Parts Scanalyzed . | . . . . . Part Schematics Acquired . | . . . . . Parts Damaged . | . . . . . Bothacking | -11 -10 -10 -9 -8 ------------ Run | Scr Mat Min Mat Mat Used RIF Installer . | . . . . . Robots Hacked . | . . . . . Non-combat . | . . . . . Combat . | . . . . . Robot Hacks Applied . | . . . . . Relay Couplers Released . | . . . . . Fabnet Peak Effective % . | . . . . . Robots Rewired . | . . . . . Allies Hacked . | . . . . . Hacks Repelled . | . . . . . Allies | -11 -10 -10 -9 -8 -------- Run | Scr Mat Min Mat Mat Total Allies 1 | . . 1 . . Largest Group 1 | . . 1 1 . Highest-Rated Group 31 | . . 31 31 . Highest-Rated Ally 31 | . . 31 31 . Total Orders . | . . . . . Ally Attacks 17 | . . 6 11 . Total Damage 211 | . . 107 104 . Kills 3 | . . 2 1 . Allies Corrupted . | . . . . . Allies Melted . | . . . . . Intel | -11 -10 -10 -9 -8 ------- Run | Scr Mat Min Mat Mat Robot Analysis Total 3 | . 2 . 1 . Derelict Logs Recovered . | . . . . . Drone Launches . | . . . . . Drone Recoveries . | . . . . . Exploration | -11 -10 -10 -9 -8 ------------- Run | Scr Mat Min Mat Mat Turns Passed 2588 | 102 908 151 789 638 Spaces Moved 1361 | 76 566 96 385 238 Core 12 | 12 . . . . Treads 674 | . . 51 385 238 Legs 675 | 64 566 45 . . Wheels . | . . . . . Hover . | . . . . . Flight . | . . . . . Fastest Speed 50 | 50 120 120 160 160 Average Speed 139 | 108 120 141 160 160 Slowest Speed 160 | 120 120 160 160 160 Overloaded Moves . | . . . . . Propulsion Burnouts . | . . . . . Robots Hopped . | . . . . . Cave-ins Triggered . | . . . . . Exploration Rate (%) 33 | 4 81 24 32 28 Regions Visited 4 Branch Regions 1 Pre-discovered Areas . | . . . . . Known Exits Taken . | . . . . . Unknown Exits Taken 4 | 1 1 1 1 . Scrap Searched . | . . . . . Spaces Dug . | . . . . . Terrain Destroyed 38 | . . . . 38 Melee . | . . . . . Projectile . | . . . . . AOE 38 | . . . . 38 Terrain Rammed . | . . . . . Walls Destroyed . | . . . . . Machines Disabled . | . . . . . Actions | -11 -10 -10 -9 -8 --------- Run | Scr Mat Min Mat Mat Total 1755 | 93 687 112 468 395 Wait 117 | 3 38 11 11 54 Move 1358 | 76 565 95 384 238 Hop . | . . . . . Pick Up 31 | 8 7 1 6 9 Fast Attach 16 | 4 3 . 1 8 Attach 18 | 2 2 2 3 9 Detach . | . . . . . Swap 23 | . 4 . 11 8 Drop 26 | . 6 2 6 12 Fire 165 | . 62 . 46 57 Melee . | . . . . . Ram . | . . . . . Kick . | . . . . . Crush 1 | . . 1 . . Escape Stasis . | . . . . . Rewire . | . . . . . Trap . | . . . . . Miscellaneous . | . . . . . Route ------- -11/Scrapyard -10/Materials (discovered 4 exits: *Mat x2 / [*Min x2]) -10/Mines -9/Materials (discovered 2 exits: *Mat / [*Min]) -8/Materials History --------- Turn | Location | Event 6 | -11/Scrapyard | Discovered new exit (range 16) 103 | -11/Scrapyard | Entered Materials 287 | -10/Materials | Core integrity fell below 50% 335 | -10/Materials | Build established: Mutant 362 | -10/Materials | Discovered new exit (range 15) 468 | -10/Materials | Discovered new exit (range 12) 537 | -10/Materials | Discovered new exit (range 13) 717 | -10/Materials | Central database locked down 831 | -10/Materials | Build established: Scavenger-Mutant 949 | -10/Materials | Discovered new exit (range 12) 1011 | -10/Materials | Entered Mines 1014 | -10/Mines | Received a Mining Laser from a helpful Derelict 1071 | -10/Mines | Received a Rocket Launcher from a helpful Derelict 1149 | -10/Mines | Discovered new exit (range 6) 1162 | -10/Mines | Entered Materials 1162 | -9/Materials | Accompanied by 1 ally 1162 | -9/Materials | Evolved 2 slots: Propulsion x2 1569 | -9/Materials | Discovered new exit (range 16) 1837 | -9/Materials | Discovered new exit (range 12) 1951 | -9/Materials | Entered another Materials area 1951 | -8/Materials | Evolved 2 slots: Utility x2 2424 | -8/Materials | Destroyed 7 combat bots 2589 | -8/Materials | Self-destructed Last Messages --------------- 02573_ U-05 Engineer lays Concrete. 02574_ Penetrated by Slug. 02574_ Hvy. Assault Rifle destroyed. 02575_ U-05 Engineer builds a Door. 02576_ K-01 Serf collects debris. 02577_ Acquired Lgt. Treads. 02577_ R-06 Scavenger collects Wheel. 02578_ R-06 Scavenger collects Corrupted Hvy. Assault Rifle. 02580_ U-05 Engineer lays Concrete. 02580_ Slug penetrates G-47 Trooper. 02581_ U-05 Engineer lays Concrete. 02581_ K-01 Serf collects debris. 02582_ U-05 Engineer builds a Wall. 02582_ R-06 Scavenger collects Heat Sink. 02583_ Penetrated by Slug. 02584_ K-01 Serf collects debris. 02586_ Penetrated by Slug. 02587_ U-05 Engineer lays Concrete. 02588_ K-01 Serf collects debris. 02588_ U-05 Engineer lays Concrete. Map ----- +----------------------------------------------------+ | ?????????????????????#####/############ #????? | | ???????????????????### %![% "#???? #????? | | ??????????##+######### # #??? #????? | | ??????#T### #%! = #"#??? #????? | | ????? + = ##??? #????? | | ??????????# # ###??? #????? | | ??????????######## # ###??? #????? | | ?????????????????# # ##???? #????? | | ?????????????????# ######"#######??????????????? | | ?????????????????# !%####### #???????????????? | | ?????????????????# ! #???????????????? | | ?????????????????# #???????????????? | | ?????????????????# ??????????? | | ?????????????????# ####### ##??????????????? | | ?????????????????# #??????######???????????????? | | ?????????????????# #???????????????????????????? | | ?????????????????# ########????????????????????? | | ?????????????????# #######??????????????? | | ?????????????????# +???????????? | | ?????????????????# w #####????????????????? | | ?????????????????# ####r ;##########??????????? | | ?????????????????# #??# u;! ! #??????????? | | ?????????????????# #??# # #??????????? | | ?????????????????# #?## + ] !#??????????? | | ????????????????? #?## %# = #??????????? | | ???????????????? #?##@k ###########??????????? | | ??????????????? ??##[gh##???????????????????? | | ??????????????#######??# !%a%! ??????????????????? | | ???????????????????????# = = ?????????????????? | | ??????????????????????? ???????????????? | | ??????????????????????## #####+??????????????? | | ???????????????????????# #???????????????????? | | ???????????????????????#######???????????????????? | | ?????????????????????????????????????????????????? | | ?????????????????????????????????????????????????? | | ?????????????????????????????????????????????????? | | ?????????????????????????????????????????????????? | | ?????????????????????????????????????????????????? | | ?????????????????????????????????????????????????? | | ?????????????????????????????????????????????????? | | ?????????????????????????????????????????????????? | | ?????????????????????????????????????????????????? | | ?????????????????????????????????????????????????? | | ?????????????????????????????????????????????????? | | ?????????????????????????????????????????????????? | | ?????????????????????????????????????????????????? | | ?????????????????????????????????????????????????? | | ?????????????????????????????????????????????????? | | ?????????????????????????????????????????????????? | | ?????????????????????????????????????????????????? | +----------------------------------------------------+ Best States ------------- Heat Dissipation 45 Energy Generation 18 Energy Capacity 280 Matter Stores 300 Matter Capacity 300 Sight Range 16 Robot Scan Range 14 Terrain Scan Density 10 Evasion (%) 55 Recoil Reduction 4 Offensive Hacking 10 Item Schematics ----------------- None Robot Schematics ------------------ None Fabricated ------------ Nothing Alien Tech Used ----------------- None Achievements -------------- None Challenges ------------ None Game ------ Seed DeepRecyclingMultirail Manual? 0 Play Time 00:24:40 Cumulative 100.4 hours Start 2022.05.10 @ 15:14:07 End 2022.05.10 @ 15:36:08 Sessions 1 Manual Loads 0 Difficulty Rogue Special Mode None Game No. 125 Rogue 125 Adventurer 0 Explorer 0 Win Type - Total 1 Types 1/0/0/0/0/0/0/0/0 Lore% 58 Gallery% 55 Achievement% 48 Wizard Run 0 Options --------- ASCII 0 Keyboard 0 Movement Numpad Keybinds 0 Fullscreen 1 Font 18/X11Bold Map View 76x50 Tactical HUD 1 Map Filters NONE Filters NONE Steam X RUN: b0f4bfd8-de9f-4b87-a6a7-6b9003c2843b